fUST/lending_fUST_20250628
["ID","MTS","AMOUNT","RATE_DAILY","PERIOD"]
[368180935,1751051470824,-5152.74,0.00020821,2]
[368180936,1751051470833,-460.0,0.00020821,2]
[368180937,1751051470843,-460.0,0.00020821,2]
[368180938,1751051470852,-2353.85,0.00020821,2]
[368180939,1751051470861,-460.0,0.00020821,2]
[368180940,1751051470870,-460.0,0.00020821,2]
[368180941,1751051470879,-460.0,0.00020821,2]
[368180942,1751051470888,-464.68311241,0.00020821,2]
[368180943,1751051470897,-460.0,0.00020821,2]
[368180944,1751051470907,-1031.13,0.00020821,2]
[368180945,1751051470915,-460.0,0.00020821,2]
[368180946,1751051470925,-460.0,0.00020821,2]
[368180947,1751051470934,-777.81,0.00020821,2]
[368180948,1751051470943,-460.0,0.00020821,2]
[368180949,1751051470953,-460.0,0.00020821,2]
[368180950,1751051470962,-337.808917,0.00020821,2]
[368180951,1751051470972,-460.0,0.00020821,2]
[368180952,1751051470981,-460.0,0.00020821,2]
[368180953,1751051470991,-565.72,0.00020821,2]
[368180954,1751051471001,-337.808917,0.00020821,2]
[368180955,1751051471010,-460.0,0.00020821,2]
[368180956,1751051471019,-460.0,0.00020821,2]
[368180957,1751051471029,-460.0,0.00020821,2]
[368180958,1751051471039,-6789.07,0.00020821,2]
[368180959,1751051471048,-460.0,0.00020821,2]
[368180960,1751051471058,-460.0,0.00020821,2]
[368180961,1751051471068,-460.0,0.00020821,2]
[368180962,1751051471077,-460.0,0.00020821,2]
[368180963,1751051471086,-2920.48,0.00020821,2]
[368180964,1751051471095,-460.0,0.00020821,2]
[368180965,1751051471105,-460.0,0.00020821,2]
[368180966,1751051471115,-2375.76,0.00020821,2]
[368180967,1751051471125,-901.26,0.00020821,2]
[368180968,1751051471134,-1778.83,0.00020821,2]
[368180969,1751051471143,-460.0,0.00020821,2]
[368180970,1751051471153,-2146.57,0.00020821,2]
[368180971,1751051471162,-917.64,0.00020821,2]
[368180972,1751051471171,-460.0,0.00020821,2]
[368180973,1751051471181,-550.12,0.00020821,2]
[368180974,1751051471191,-1025.56,0.00020821,2]
[368180975,1751051471200,-460.0,0.00020821,2]
[368180976,1751051471209,-460.0,0.00020821,2]
[368180977,1751051471219,-460.0,0.00020821,2]
[368180978,1751051471228,-1044.81,0.00020821,2]
[368180979,1751051471237,-483.65,0.00020821,2]
[368180980,1751051471246,-945.34,0.00020821,2]
[368180981,1751051471255,-151.0,0.00020821,2]
[368180982,1751051471265,-3198.36,0.00020821,2]
[368180983,1751051471275,-460.0,0.00020821,2]
[368180984,1751051471284,-709.45,0.00020821,2]
[368180985,1751051471294,-915.59,0.00020821,2]
[368180986,1751051471303,-824.17,0.00020821,2]
[368180987,1751051471312,-1482.55,0.00020821,2]
[368180988,1751051471322,-251.456301,0.00020821,2]
[368180989,1751051471331,-460.0,0.00020821,2]
[368180990,1751051471340,-2444.21,0.00020821,2]
[368180991,1751051471350,-1938.213358,0.00020821,2]
[368180992,1751051471359,-151.0,0.00020821,2]
[368180993,1751051471369,-251.456301,0.00020821,2]
[368180994,1751051471379,-460.0,0.00020821,2]
[368180995,1751051471388,-1938.213358,0.00020821,2]
[368180996,1751051471397,-750.01,0.00020821,2]
[368180997,1751051471407,-1048.08,0.00020821,2]
[368180998,1751051471416,-460.0,0.00020821,2]
[368180999,1751051471425,-4965.5,0.00020821,2]
[368181000,1751051471435,-460.0,0.00020821,2]
[368181001,1751051471444,-460.0,0.00020821,2]
[368181002,1751051471454,-460.0,0.00020821,2]
[368181003,1751051471463,-545.1987383,0.00020821,2]
[368181004,1751051471473,-460.0,0.00020821,2]
[368181005,1751051471486,-771.0,0.00020821,2]
[368181006,1751051471495,-215.108381,0.00020821,2]
[368181007,1751051471505,-460.0,0.00020821,2]
[368181008,1751051471514,-215.108381,0.00020821,2]
[368181009,1751051471525,-460.0,0.00020821,2]
[368181010,1751051471534,-603.45203309,0.00020821,2]
[368181011,1751051471544,-168.4469,0.00020821,2]
[368181012,1751051471552,-465.04724828,0.00020821,2]
[368181013,1751051471562,-460.0,0.00020821,2]
[368181014,1751051471572,-460.0,0.00020821,2]
[368181015,1751051471581,-168.4469,0.00020821,2]
[368181016,1751051471591,-460.0,0.00020821,2]
[368181017,1751051471600,-1360.53,0.00020821,2]
[368181018,1751051471609,-460.0,0.00020821,2]
[368181019,1751051471618,-1173.53,0.00020821,2]
[368181020,1751051471628,-11825.71,0.00020821,2]
[368181021,1751051471637,-204.10956673,0.00020821,2]
[368181022,1751051471646,-460.0,0.00020821,2]
[368181023,1751051471655,-460.0,0.00020821,2]
[368181024,1751051471665,-460.0,0.00020821,2]
[368181025,1751051471674,-3042.84,0.00020821,2]
[368181026,1751051471684,-460.0,0.00020821,2]
[368181027,1751051471693,-583.9,0.00020821,2]
[368181028,1751051471703,-460.0,0.00020821,2]
[368181029,1751051471712,-460.0,0.00020821,2]
[368181030,1751051471720,-640.44,0.00020821,2]
[368181031,1751051471730,-670.83,0.00020821,2]
[368181032,1751051471739,-460.0,0.00020821,2]
[368181033,1751051471749,-4999.34,0.00020821,2]
[368181034,1751051471758,-541.56883614,0.00020821,2]
[368181035,1751051471767,-460.0,0.00020821,2]
[368181036,1751051471777,-907.31,0.00020821,2]
[368181037,1751051471786,-872.48,0.00020821,2]
[368181038,1751051471795,-460.0,0.00020821,2]
[368181039,1751051471805,-460.0,0.00020821,2]
[368181040,1751051471814,-460.0,0.00020821,2]
[368181041,1751051471824,-5707.73,0.00020821,2]
[368181042,1751051471833,-1053.94,0.00020821,2]
[368181043,1751051471843,-470.23712706,0.00020821,2]
[368181044,1751051471853,-500.0,0.00020822,2]
[368181045,1751051471862,-211.86564522,0.00020822,3]
[368181046,1751051471872,-500.0,0.00020823,2]
[368181047,1751051471882,-404.33991464,0.00020823,2]
[368181048,1751051471891,-306.74033047,0.00020823,2]
[368181049,1751051471901,-500.0,0.00020823,2]
[368181050,1751051471910,-500.0,0.00020823,2]
[368181051,1751051471919,-600.0,0.00020823,2]
[368181052,1751051471928,-500.0,0.00020823,2]
[368181053,1751051471937,-530.41482671,0.00020823,2]
[368181054,1751051471947,-608.605965,0.00020823,2]
[368181055,1751051471957,-500.0,0.00020823,2]
[368181056,1751051471967,-500.0,0.00020823,2]
[368181057,1751051471976,-500.0,0.00020826,2]
[368181058,1751051471986,-500.0,0.00020826,2]
[368181059,1751051471996,-168.0,0.0002083,2]
[368181060,1751051472006,-1323.0,0.00020852,2]
[368181061,1751051472016,-6904.98728489,0.00020866,4]
[368181062,1751051472026,-616.636,0.00020877,2]
[368181063,1751051472036,-420.0,0.00020899,2]
[368181064,1751051472045,-151.0,0.000209,3]
[368181065,1751051472055,-181.9,0.00020975,4]
[368181066,1751051472065,-201.66384461,0.00021007,2]
[368181067,1751051472074,-354.798298,0.00021014,2]
[368181068,1751051472084,-203.72036983,0.00021018,5]
[368181069,1751051472094,-5000.0,0.00021034,2]
[368181070,1751051472104,-151.0,0.00021035,2]
[368181071,1751051472113,-151.0,0.00021035,2]
[368181072,1751051472122,-151.0,0.00021035,2]
[368181073,1751051472132,-456.2521809,0.00021051,2]
[368181074,1751051472141,-1323.0,0.00021065,2]
[368181075,1751051472150,-1845.21666864,0.00021095,2]
[368181076,1751051472160,-460.0,0.00021095,2]
[368181077,1751051472169,-430.0,0.00021095,2]
[368181078,1751051472178,-460.0,0.00021095,2]
[368181079,1751051472187,-460.0,0.00021095,2]
[368181080,1751051472197,-587.76,0.00021095,2]
[368181081,1751051472206,-460.0,0.00021095,2]
[368181082,1751051472215,-460.0,0.00021095,2]
[368181083,1751051472330,-460.0,0.00021095,2]
[368181084,1751051472340,-151.0,0.00021095,2]
[368181085,1751051472349,-151.0,0.00021095,2]
[368181086,1751051472359,-460.0,0.00021095,2]
[368181087,1751051472368,-1001.51305,0.00021095,2]
[368181088,1751051472377,-460.0,0.00021095,2]
[368181089,1751051472386,-355.65289753,0.00021095,2]
[368181090,1751051472395,-460.0,0.00021095,2]
[368181091,1751051472404,-460.0,0.00021095,2]
[368181092,1751051472413,-460.0,0.00021095,2]
[368181093,1751051472422,-460.0,0.00021095,2]
[368181094,1751051472431,-460.0,0.00021095,2]
[368181095,1751051472440,-460.0,0.00021095,2]
[368181096,1751051472449,-460.0,0.00021095,2]
[368181097,1751051472459,-896.19,0.00021095,2]
[368181098,1751051472468,-940.28,0.00021095,2]
[368181099,1751051472477,-151.0,0.00021095,2]
[368181100,1751051472488,-460.0,0.00021095,2]
[368181101,1751051472497,-562.65,0.00021095,2]
[368181102,1751051472507,-460.0,0.00021095,2]
[368181103,1751051472515,-471.98705521,0.00021095,2]
[368181104,1751051472526,-460.0,0.00021095,2]
[368181105,1751051472535,-1430.56,0.00021095,2]
[368181106,1751051472544,-460.0,0.00021095,2]
[368181107,1751051472554,-460.0,0.00021095,2]
[368181108,1751051472564,-151.0,0.00021095,2]
[368181109,1751051472573,-460.0,0.00021095,2]
[368181110,1751051472583,-525.51,0.00021095,2]
[368181111,1751051472593,-460.0,0.00021095,2]
[368181112,1751051472602,-330.22140276,0.00021095,2]
[368181113,1751051472612,-460.0,0.00021095,2]
[368181114,1751051472622,-460.0,0.00021095,2]
[368181115,1751051472631,-460.0,0.00021095,2]
[368181116,1751051472640,-460.0,0.00021095,2]
[368181117,1751051472649,-460.0,0.00021095,2]
[368181118,1751051472659,-460.0,0.00021095,2]
[368181119,1751051472668,-460.0,0.00021095,2]
[368181120,1751051472677,-633.77,0.00021095,2]
[368181121,1751051472686,-460.0,0.00021095,2]
[368181122,1751051472696,-272.692667,0.00021095,2]
[368181123,1751051472705,-460.0,0.00021095,2]
[368181124,1751051472714,-272.692667,0.00021095,2]
[368181125,1751051472724,-460.0,0.00021095,2]
[368181126,1751051472734,-460.0,0.00021095,2]
[368181127,1751051472743,-460.0,0.00021095,2]
[368181128,1751051472752,-320.860355,0.00021095,2]
[368181129,1751051472761,-460.0,0.00021095,2]
[368181130,1751051472770,-320.860355,0.00021095,2]
[368181131,1751051472779,-460.0,0.00021095,2]
[368181132,1751051472789,-243.63865367,0.00021095,2]
[368181133,1751051472798,-460.0,0.00021095,2]
[368181134,1751051472807,-460.0,0.00021095,2]
[368181135,1751051472816,-460.0,0.00021095,2]
[368181136,1751051472826,-460.0,0.00021095,2]
[368181137,1751051472835,-460.0,0.00021095,2]
[368181138,1751051472844,-460.0,0.00021095,2]
[368181139,1751051472853,-460.0,0.00021095,2]
[368181140,1751051472863,-460.0,0.00021095,2]
[368181141,1751051472873,-460.0,0.00021095,2]
[368181142,1751051472884,-460.0,0.00021095,2]
[368181143,1751051472894,-885.83,0.00021095,2]
[368181144,1751051472903,-460.0,0.00021095,2]
[368181145,1751051472912,-460.0,0.00021095,2]
[368181146,1751051472922,-736.88,0.00021095,2]
[368181147,1751051472931,-460.0,0.00021095,2]
[368181148,1751051472941,-466.79,0.00021095,2]
[368181149,1751051472950,-460.0,0.00021095,2]
[368181150,1751051472959,-460.0,0.00021095,2]
[368181151,1751051472969,-469.34,0.00021095,2]
[368181152,1751051472979,-460.0,0.00021095,2]
[368181153,1751051472988,-460.0,0.00021095,2]
[368181154,1751051472998,-460.0,0.00021095,2]
[368181155,1751051473007,-460.0,0.00021095,2]
[368181156,1751051473016,-460.0,0.00021095,2]
[368181157,1751051473026,-515.25,0.00021095,2]
[368181158,1751051473035,-1048.76,0.00021095,2]
[368181159,1751051473044,-268.910966,0.00021095,2]
[368181160,1751051473053,-460.0,0.00021095,2]
[368181161,1751051473063,-460.0,0.00021095,2]
[368181162,1751051473072,-460.0,0.00021095,2]
[368181163,1751051473082,-268.910966,0.00021095,2]
[368181164,1751051473091,-460.0,0.00021095,2]
[368181165,1751051473100,-151.0,0.00021095,2]
[368181166,1751051473109,-151.0,0.00021095,2]
[368181167,1751051473118,-460.0,0.00021095,2]
[368181168,1751051473128,-460.0,0.00021095,2]
[368181169,1751051473137,-460.0,0.00021095,2]
[368181170,1751051473146,-989.33,0.00021095,2]
[368181171,1751051473155,-460.0,0.00021095,2]
[368181172,1751051473166,-460.0,0.00021095,2]
[368181173,1751051473175,-460.0,0.00021095,2]
[368181174,1751051473185,-460.0,0.00021095,2]
[368181175,1751051473196,-574.2483463,0.00021095,2]
[368181176,1751051473207,-460.0,0.00021095,2]
[368181177,1751051473216,-460.0,0.00021095,2]
[368181178,1751051473225,-243.45,0.00021095,2]
[368181179,1751051473244,-269.4,0.00021095,2]
[368181180,1751051473254,-460.0,0.00021095,2]
[368181181,1751051473264,-797.49,0.00021095,2]
[368181182,1751051473274,-180.94,0.00021095,2]
[368181183,1751051473284,-790.98,0.00021095,2]
[368181184,1751051473293,-460.0,0.00021095,2]
[368181185,1751051473302,-1185.28,0.00021095,2]
[368181186,1751051473311,-460.0,0.00021095,2]
[368181187,1751051473321,-500.0,0.00021095,2]
[368181188,1751051473330,-1047.76,0.00021095,2]
[368181189,1751051473339,-1638.87,0.00021095,2]
[368181190,1751051473349,-1443.51,0.00021095,2]
[368181191,1751051473358,-2651.75,0.00021095,2]
[368181192,1751051473367,-617.15,0.00021095,2]
[368181193,1751051473377,-624.78,0.00021095,2]
[368181194,1751051473386,-794.36,0.00021095,2]
[368181195,1751051473396,-460.0,0.00021095,2]
[368181196,1751051473405,-596.62,0.00021095,2]
[368181197,1751051473415,-460.0,0.00021095,2]
[368181198,1751051473425,-151.0,0.00021095,2]
[368181199,1751051473434,-460.0,0.00021095,2]
[368181200,1751051473444,-460.0,0.00021095,2]
[368181201,1751051473453,-759.92,0.00021095,2]
[368181202,1751051473464,-460.0,0.00021095,2]
[368181203,1751051473474,-261.625174,0.00021095,2]
[368181204,1751051473487,-5876.3,0.00021095,2]
[368181205,1751051473496,-460.0,0.00021095,2]
[368181206,1751051473505,-261.625174,0.00021095,2]
[368181207,1751051473514,-460.0,0.00021095,2]
[368181208,1751051473525,-690.27,0.00021095,2]
[368181209,1751051473534,-460.0,0.00021095,2]
[368181210,1751051473543,-751.5,0.00021095,2]
[368181211,1751051473555,-460.0,0.00021095,2]
[368181212,1751051473566,-460.0,0.00021095,2]
[368181213,1751051473575,-8165.44,0.00021095,2]
[368181214,1751051473585,-460.0,0.00021095,2]
[368181215,1751051473594,-4917.82,0.00021095,2]
[368181216,1751051473603,-2460.7,0.00021095,2]
[368181217,1751051473613,-2172.27,0.00021095,2]
[368181218,1751051473622,-460.0,0.00021095,2]
[368181219,1751051473631,-460.0,0.00021095,2]
[368181220,1751051473641,-5152.74,0.00021095,2]
[368181221,1751051473650,-490.56175889,0.00021095,2]
[368181222,1751051473659,-460.0,0.00021095,2]
[368181223,1751051473669,-2353.85,0.00021095,2]
[368181224,1751051473678,-460.0,0.00021095,2]
[368181225,1751051473687,-460.0,0.00021095,2]
[368181226,1751051473697,-460.0,0.00021095,2]
[368181227,1751051473706,-460.0,0.00021095,2]
[368181228,1751051473715,-1031.13,0.00021095,2]
[368181229,1751051473725,-460.0,0.00021095,2]
[368181230,1751051473734,-460.0,0.00021095,2]
[368181231,1751051473743,-777.81,0.00021095,2]
[368181232,1751051473753,-460.0,0.00021095,2]
[368181233,1751051473762,-460.0,0.00021095,2]
[368181234,1751051473772,-337.808917,0.00021095,2]
[368181235,1751051473781,-460.0,0.00021095,2]
[368181236,1751051473791,-460.0,0.00021095,2]
[368181237,1751051473800,-565.72,0.00021095,2]
[368181238,1751051473809,-337.808917,0.00021095,2]
[368181239,1751051473819,-460.0,0.00021095,2]
[368181240,1751051473828,-460.0,0.00021095,2]
[368181241,1751051473839,-460.0,0.00021095,2]
[368181242,1751051473849,-6789.07,0.00021095,2]
[368181243,1751051473859,-460.0,0.00021095,2]
[368181244,1751051473868,-460.0,0.00021095,2]
[368181245,1751051473878,-460.0,0.00021095,2]
[368181246,1751051473888,-2920.48,0.00021095,2]
[368181247,1751051473897,-460.0,0.00021095,2]
[368181248,1751051473907,-460.0,0.00021095,2]
[368181249,1751051473917,-2375.76,0.00021095,2]
[368181250,1751051473926,-901.26,0.00021095,2]
[368181251,1751051473935,-1778.83,0.00021095,2]
[368181252,1751051473945,-460.0,0.00021095,2]
[368181253,1751051473954,-2146.57,0.00021095,2]
[368181254,1751051473963,-917.64,0.00021095,2]
[368181255,1751051473972,-460.0,0.00021095,2]
[368181256,1751051473982,-550.12,0.00021095,2]
[368181257,1751051473992,-1025.56,0.00021095,2]
[368181258,1751051474002,-460.0,0.00021095,2]
[368181259,1751051474012,-460.0,0.00021095,2]
[368181260,1751051474022,-460.0,0.00021095,2]
[368181261,1751051474031,-1044.81,0.00021095,2]
[368181262,1751051474041,-483.65,0.00021095,2]
[368181263,1751051474051,-945.34,0.00021095,2]
[368181264,1751051474060,-185.0,0.00021095,2]
[368181265,1751051474071,-3198.36,0.00021095,2]
[368181266,1751051474081,-458.16,0.00021095,2]
[368181267,1751051474090,-709.45,0.00021095,2]
[368181268,1751051474100,-915.59,0.00021095,2]
[368181269,1751051474110,-824.17,0.00021095,2]
[368181270,1751051474120,-1482.55,0.00021095,2]
[368181271,1751051474129,-460.0,0.00021095,2]
[368181272,1751051474139,-251.456301,0.00021095,2]
[368181273,1751051474149,-2444.21,0.00021095,2]
[368181274,1751051474159,-1938.213358,0.00021095,2]
[368181275,1751051474168,-151.0,0.00021095,2]
[368181276,1751051474177,-251.456301,0.00021095,2]
[368181277,1751051474187,-460.0,0.00021095,2]
[368181278,1751051474196,-1938.213358,0.00021095,2]
[368181279,1751051474206,-750.01,0.00021095,2]
[368181280,1751051474215,-1048.08,0.00021095,2]
[368181281,1751051474225,-460.0,0.00021095,2]
[368181282,1751051474234,-4965.5,0.00021095,2]
[368181283,1751051474243,-460.0,0.00021095,2]
[368181284,1751051474253,-460.0,0.00021095,2]
[368181285,1751051474263,-460.0,0.00021095,2]
[368181286,1751051474272,-460.0,0.00021095,2]
[368181287,1751051474281,-771.0,0.00021095,2]
[368181288,1751051474291,-215.108381,0.00021095,2]
[368181289,1751051474301,-347.74979865,0.00021095,2]
[368181290,1751051474310,-215.108381,0.00021095,2]
[368181291,1751051474324,-460.0,0.00021095,2]
[368181292,1751051474333,-168.4469,0.00021095,2]
[368181293,1751051474342,-460.0,0.00021095,2]
[368181294,1751051474352,-460.0,0.00021095,2]
[368181295,1751051474362,-168.4469,0.00021095,2]
[368181296,1751051474371,-460.0,0.00021095,2]
[368181297,1751051474381,-1360.53,0.00021095,2]
[368181298,1751051474390,-460.0,0.00021095,2]
[368181299,1751051474400,-1173.53,0.00021095,2]
[368181300,1751051474410,-11825.71,0.00021095,2]
[368181301,1751051474420,-460.0,0.00021095,2]
[368181302,1751051474430,-279.16606981,0.00021095,2]
[368181303,1751051474440,-460.0,0.00021095,2]
[368181304,1751051474449,-3042.84,0.00021095,2]
[368181305,1751051474459,-460.0,0.00021095,2]
[368181306,1751051474468,-583.9,0.00021095,2]
[368181307,1751051474479,-460.0,0.00021095,2]
[368181308,1751051474490,-460.0,0.00021095,2]
[368181309,1751051474499,-640.44,0.00021095,2]
[368181310,1751051474508,-670.83,0.00021095,2]
[368181311,1751051474518,-460.0,0.00021095,2]
[368181312,1751051474528,-460.0,0.00021095,2]
[368181313,1751051474539,-4999.34,0.00021095,2]
[368181314,1751051474548,-907.31,0.00021095,2]
[368181315,1751051474560,-872.48,0.00021095,2]
[368181316,1751051474569,-460.0,0.00021095,2]
[368181317,1751051474579,-460.0,0.00021095,2]
[368181318,1751051474588,-460.0,0.00021095,2]
[368181319,1751051474598,-5707.73,0.00021095,2]
[368181320,1751051474608,-1053.94,0.00021095,2]
[368181321,1751051474617,-176.27061953,0.00021096,2]
[368181322,1751051474627,-151.0,0.000211,3]
[368181323,1751051474637,-6904.98728489,0.00021107,4]
[368181324,1751051474647,-2000.0,0.00021116,2]
[368181325,1751051474656,-168.0,0.00021123,2]
[368181326,1751051474666,-1271.0,0.00021125,2]
[368181327,1751051474676,-151.0,0.00021237,2]
[368181328,1751051474685,-151.0,0.00021237,2]
[368181329,1751051474858,-151.0,0.00021237,2]
[368181330,1751051474868,-191.043374,0.00021237,2]
[368181331,1751051474878,-191.043374,0.00021237,2]
[368181332,1751051474888,-151.0,0.00021237,2]
[368181333,1751051474897,-151.0,0.00021237,2]
[368181334,1751051474907,-1323.0,0.00021251,2]
[368181335,1751051474916,-215.0738,0.00021307,2]
[368181336,1751051474926,-181.9,0.00021312,4]
[368181337,1751051474936,-6904.98728489,0.00021348,5]
[368181338,1751051474946,-1323.0,0.00021355,2]
[368181339,1751051474955,-353.32,0.00021369,2]
[368181340,1751051474965,-460.0,0.00021369,2]
[368181341,1751051474974,-460.0,0.00021369,2]
[368181342,1751051474984,-587.76,0.00021369,2]
[368181343,1751051474993,-460.0,0.00021369,2]
[368181344,1751051475003,-460.0,0.00021369,2]
[368181345,1751051475013,-208.031128,0.00021369,2]
[368181346,1751051475022,-208.031128,0.00021369,2]
[368181347,1751051475032,-460.0,0.00021369,2]
[368181348,1751051475042,-276.708657,0.00021369,2]
[368181349,1751051475051,-276.708657,0.00021369,2]
[368181350,1751051475061,-460.0,0.00021369,2]
[368181351,1751051475070,-151.0,0.00021369,2]
[368181352,1751051475080,-155.96679068,0.00021369,2]
[368181353,1751051475089,-460.0,0.00021369,2]
[368181354,1751051475100,-460.0,0.00021369,2]
[368181355,1751051475110,-460.0,0.00021369,2]
[368181356,1751051475119,-460.0,0.00021369,2]
[368181357,1751051475130,-460.0,0.00021369,2]
[368181358,1751051475140,-460.0,0.00021369,2]
[368181359,1751051475151,-460.0,0.00021369,2]
[368181360,1751051475162,-896.19,0.00021369,2]
[368181361,1751051475172,-940.28,0.00021369,2]
[368181362,1751051475181,-151.0,0.00021369,2]
[368181363,1751051475192,-460.0,0.00021369,2]
[368181364,1751051475202,-562.65,0.00021369,2]
[368181365,1751051475211,-460.0,0.00021369,2]
[368181366,1751051475220,-1430.56,0.00021369,2]
[368181367,1751051475230,-460.0,0.00021369,2]
[368181368,1751051475239,-460.0,0.00021369,2]
[368181369,1751051475249,-460.0,0.00021369,2]
[368181370,1751051475258,-244.156814,0.00021369,2]
[368181371,1751051475267,-244.156814,0.00021369,2]
[368181372,1751051475277,-151.0,0.00021369,2]
[368181373,1751051475287,-460.0,0.00021369,2]
[368181374,1751051475297,-525.51,0.00021369,2]
[368181375,1751051475307,-460.0,0.00021369,2]
[368181376,1751051475317,-411.165598,0.00021369,2]
[368181377,1751051475326,-460.0,0.00021369,2]
[368181378,1751051475336,-460.0,0.00021369,2]
[368181379,1751051475345,-460.0,0.00021369,2]
[368181380,1751051475355,-460.0,0.00021369,2]
[368181381,1751051475366,-460.0,0.00021369,2]
[368181382,1751051475375,-460.0,0.00021369,2]
[368181383,1751051475385,-633.77,0.00021369,2]
[368181384,1751051475394,-460.0,0.00021369,2]
[368181385,1751051475404,-272.692667,0.00021369,2]
[368181386,1751051475413,-492.14427431,0.00021369,2]
[368181387,1751051475422,-272.692667,0.00021369,2]
[368181388,1751051475432,-460.0,0.00021369,2]
[368181389,1751051475441,-460.0,0.00021369,2]
[368181390,1751051475450,-460.0,0.00021369,2]
[368181391,1751051475459,-320.860355,0.00021369,2]
[368181392,1751051475469,-460.0,0.00021369,2]
[368181393,1751051475479,-320.860355,0.00021369,2]
[368181394,1751051475490,-460.0,0.00021369,2]
[368181395,1751051475499,-460.0,0.00021369,2]
[368181396,1751051475508,-460.0,0.00021369,2]
[368181397,1751051475517,-460.0,0.00021369,2]
[368181398,1751051475526,-460.0,0.00021369,2]
[368181399,1751051475536,-460.0,0.00021369,2]
[368181400,1751051475545,-460.0,0.00021369,2]
[368181401,1751051475555,-460.0,0.00021369,2]
[368181402,1751051475564,-460.0,0.00021369,2]
[368181403,1751051475573,-460.0,0.00021369,2]
[368181404,1751051475583,-885.83,0.00021369,2]
[368181405,1751051475592,-491.59784857,0.00021369,2]
[368181406,1751051475601,-460.0,0.00021369,2]
[368181407,1751051475610,-736.88,0.00021369,2]
[368181408,1751051475620,-460.0,0.00021369,2]
[368181409,1751051475629,-466.79,0.00021369,2]
[368181410,1751051475638,-460.0,0.00021369,2]
[368181411,1751051475648,-1500.0,0.00021369,7]
[368181412,1751051475658,-1500.0,0.00021369,7]
[368181413,1751051475667,-1500.0,0.00021369,7]
[368181414,1751051475676,-1500.0,0.00021369,7]
[368181415,1751051475685,-666.450645,0.00021369,7]
[368181416,1751051475694,-460.0,0.00021369,2]
[368181417,1751051475703,-469.34,0.00021369,2]
[368181418,1751051475712,-460.0,0.00021369,2]
[368181419,1751051475721,-460.0,0.00021369,2]
[368181420,1751051475731,-460.0,0.00021369,2]
[368181421,1751051475740,-460.0,0.00021369,2]
[368181422,1751051475749,-249.14,0.00021369,2]
[368181423,1751051475759,-515.25,0.00021369,2]
[368181424,1751051475768,-1048.76,0.00021369,2]
[368181425,1751051475777,-268.910966,0.00021369,2]
[368181426,1751051475786,-460.0,0.00021369,2]
[368181427,1751051475795,-460.0,0.00021369,2]
[368181428,1751051475805,-460.0,0.00021369,2]
[368181429,1751051475814,-268.910966,0.00021369,2]
[368181430,1751051475823,-460.0,0.00021369,2]
[368181431,1751051475833,-256.752265,0.00021369,2]
[368181432,1751051475842,-151.0,0.00021369,2]
[368181433,1751051475852,-460.0,0.00021369,2]
[368181434,1751051475861,-460.0,0.00021369,2]